fUSD/lending_fUSD_20260228
["ID","MTS","AMOUNT","RATE_DAILY","PERIOD"]
[406937729,1772304638467,-500.0,0.00015808,2]
[406937730,1772304638477,-500.0,0.00015808,2]
[406937731,1772304638486,-500.0,0.00015808,2]
[406937732,1772304638496,-500.0,0.00015808,2]
[406937733,1772304638506,-500.0,0.00015808,2]
[406937734,1772304638516,-500.0,0.00015808,2]
[406937735,1772304638525,-500.0,0.00015808,2]
[406937736,1772304638535,-500.0,0.00015808,2]
[406937737,1772304638544,-500.0,0.00015808,2]
[406937738,1772304638554,-500.0,0.00015808,2]
[406937739,1772304638563,-500.0,0.00015808,2]
[406937740,1772304638573,-500.0,0.00015808,2]
[406937741,1772304638582,-500.0,0.00015808,2]
[406937742,1772304638591,-500.0,0.00015808,2]
[406937743,1772304638601,-450.0,0.00015808,2]
[406937744,1772304638610,-500.0,0.00015808,2]
[406937745,1772304638620,-215.11807612,0.00015808,2]
[406937759,1772304639793,-1000.0,0.00015609,2]
[406937760,1772304639803,-284.88192388,0.00015808,2]
[406937761,1772304639813,-279.56071706,0.00015808,2]
[406937762,1772304639823,-500.0,0.00015808,2]
[406937763,1772304639832,-170.19779756,0.00015808,2]
[406937764,1772304639852,-329.80220244,0.00015808,2]
[406937765,1772304639862,-500.0,0.00015808,2]
[406937766,1772304639872,-500.0,0.00015808,2]
[406937767,1772304639882,-314.01279756,0.00015808,2]
[406937768,1772304639894,-185.98720244,0.00015808,2]
[406937769,1772304639903,-165.39593551,0.00015808,2]
[406937770,1772304639914,-134.60406449,0.00015808,2]
[406937771,1772304639924,-240.79593551,0.00015808,2]
[406937772,1772304639936,-259.20406449,0.00015808,2]
[406937773,1772304639952,-500.0,0.00015808,2]
[406937774,1772304639963,-500.0,0.00015808,2]
[406937775,1772304639972,-500.0,0.00015808,2]
[406937776,1772304639984,-500.0,0.00015808,2]
[406937777,1772304639994,-516.04645353,0.00015808,2]
[406937778,1772304640003,-500.0,0.00015808,2]
[406937779,1772304640013,-170.79932458,0.00015873,2]
[406937780,1772304640023,-222.12621972,0.00015873,2]
[406937781,1772304640033,-160.0,0.00015973,2]
[406937782,1772304640042,-174.04581251,0.00015973,2]
[406937783,1772304640051,-372.998721,0.00015995,2]
[406937784,1772304640061,-1356.87940412,0.00016005,2]
[406937785,1772304640111,-77296.34973,0.00016005,2]
[406937801,1772304642763,-200.0,0.00015808,2]
[406937802,1772304642773,-1482.66097841,0.00015864,2]
[406937803,1772304642782,-15925.03036999,0.00016005,2]
[406937804,1772304642797,-59016.29718759,0.00016005,2]
[406937805,1772304642806,-248412.8717548,0.00016009,2]
[406937806,1772304642815,-7775.8703832,0.00016009,2]
[406937807,1772304642824,-2498.89179257,0.00016029,2]
[406937808,1772304642834,-590.91477512,0.00016039,2]
[406937809,1772304642843,-1000.0,0.00016039,2]
[406937810,1772304642853,-733.851,0.00016039,2]
[406937811,1772304642863,-151.0,0.00016046,2]
[406937812,1772304642873,-500.0,0.00016046,2]
[406937813,1772304642882,-500.0,0.00016046,2]
[406937814,1772304642892,-500.0,0.00016046,2]
[406937815,1772304642901,-500.0,0.00016046,2]
[406937816,1772304642911,-500.0,0.00016046,2]
[406937817,1772304642920,-500.0,0.00016046,2]
[406937818,1772304642930,-668.65185757,0.00016046,2]
[406937819,1772304642939,-500.0,0.00016046,2]
[406937820,1772304642952,-500.0,0.00016046,2]
[406937821,1772304642961,-500.0,0.00016046,2]
[406937822,1772304642971,-500.0,0.00016046,2]
[406937823,1772304642980,-393.80457243,0.00016046,2]
[406937824,1772304642990,-592.57,0.00016082,2]
[406937825,1772304643000,-739.62380424,0.00016096,2]
[406937826,1772304643010,-151.0,0.00016101,2]
[406937828,1772304643020,-693.3919763,0.00016101,2]
[406937830,1772304643031,-204.70125475,0.00016109,2]
[406937832,1772304643040,-211.0,0.00016109,2]
[406937834,1772304643050,-337.69973839,0.00016155,2]
[406937836,1772304643059,-219.68959821,0.00016155,2]
[406937838,1772304643068,-151.0,0.00016156,2]
[406937840,1772304643078,-719.04747942,0.00016156,2]
[406937842,1772304643087,-153.03143577,0.0001618,2]
[406937843,1772304643097,-316.74418622,0.00016196,2]
[406937844,1772304643107,-2000.0,0.000162,2]
[406937845,1772304643116,-151.0,0.00016211,2]
[406937846,1772304643126,-745.65223616,0.00016211,2]
[406937847,1772304643136,-2498.89179257,0.00016263,2]
[406937848,1772304643146,-151.0,0.00016266,2]
[406937849,1772304643155,-773.2413689,0.00016266,2]
[406937850,1772304643165,-801.85129955,0.00016321,2]
[406937851,1772304643174,-592.57,0.00016356,2]
[406937854,1772304643183,-831.51979763,0.00016376,2]
[406937857,1772304643193,-739.62380424,0.00016396,2]
[406937859,1772304643203,-2000.0,0.000164,2]
[406937861,1772304643212,-862.28603014,0.00016431,2]
[406937863,1772304643222,-894.19061326,0.00016486,2]
[406937865,1772304643231,-2498.89179257,0.00016497,2]
[406937867,1772304643241,-1000.0,0.00016513,2]
[406937868,1772304643251,-927.27566595,0.00016541,2]
[406937870,1772304643261,-961.58486559,0.00016596,2]
[406937872,1772304643271,-2000.0,0.000166,2]
[406937873,1772304643281,-807.9375003,0.00016611,2]
[406937874,1772304643291,-1448.15873074,0.00016617,3]
[406937875,1772304643300,-592.57,0.0001663,2]
[406937876,1772304643310,-997.16350561,0.00016651,2]
[406937877,1772304643319,-739.62380424,0.00016697,2]
[406937878,1772304643330,-167.11,0.00016712,2]
[406937879,1772304643339,-1033.79,0.0001673,2]
[406937880,1772304643348,-2498.89179257,0.00016731,2]
[406937881,1772304643358,-2595.0,0.000168,2]
[406937882,1772304643368,-158.45,0.00016884,2]
[406937883,1772304643378,-170.79932458,0.00016887,2]
[406937884,1772304643388,-592.58421015,0.00016904,2]
[406937885,1772304643399,-150.0,0.00016938,14]
[406937886,1772304643409,-2498.89179257,0.00016964,2]
[406937887,1772304643419,-739.62380424,0.00016998,2]
[406937888,1772304643429,-300.0,0.00016999,2]
[406937889,1772304643439,-300.0,0.00016999,2]
[406937890,1772304643449,-147513.0296702,0.00017,2]
[406937891,1772304643460,-155.983782,0.00017,2]
[406937892,1772304643470,-151.0,0.00017,2]
[406937893,1772304643480,-151.0,0.00017,2]
[406937894,1772304643490,-151.0,0.00017,2]
[406937895,1772304643499,-500.0,0.00017,5]
[406937896,1772304643509,-2000.0,0.0001701,2]
[406937897,1772304643518,-1600.0,0.00017014,2]
[406937898,1772304643528,-278.0,0.00017097,2]
[406937899,1772304643537,-151.0,0.0001715,2]
[406937900,1772304643547,-2498.89179257,0.00017198,2]
[406937901,1772304643557,-337.482575,0.000172,7]
[406937902,1772304643566,-166.68,0.00017275,2]
[406937903,1772304643576,-739.62380424,0.00017299,2]
[406937904,1772304643586,-276.97407445,0.0001732,2]
[406937905,1772304643595,-500.0,0.0001732,2]
[406937906,1772304643605,-500.0,0.0001732,2]
[406937907,1772304643614,-500.0,0.0001732,2]
[406937908,1772304643623,-500.0,0.0001732,2]
[406937909,1772304643633,-500.0,0.0001732,2]
[406937910,1772304643643,-151.0,0.0001732,2]
[406937912,1772304643653,-151.0,0.0001732,2]
[406937913,1772304643667,-151.0,0.0001732,2]
[406937914,1772304643677,-151.0,0.0001732,2]
[406937916,1772304643687,-151.0,0.0001732,2]
[406937917,1772304643697,-500.0,0.0001732,2]
[406937918,1772304643708,-500.0,0.0001732,2]
[406937919,1772304643718,-500.0,0.0001732,2]
[406937920,1772304643727,-151.0,0.0001732,2]
[406937921,1772304643737,-152.27667,0.0001732,2]
[406937922,1772304643747,-500.0,0.0001732,2]
[406937923,1772304643757,-500.0,0.0001732,2]
[406937924,1772304643766,-289.52830744,0.0001732,2]
[406937926,1772304643775,-151.0,0.0001732,2]
[406937927,1772304643785,-151.0,0.0001732,2]
[406937929,1772304643795,-310.22607572,0.0001732,2]
[406937930,1772304643804,-500.0,0.0001732,2]
[406937931,1772304643814,-500.0,0.0001732,2]
[406937932,1772304643824,-500.0,0.0001732,2]
[406937933,1772304643838,-500.0,0.0001732,2]
[406937934,1772304643847,-500.0,0.0001732,2]
[406937935,1772304643857,-500.0,0.0001732,2]
[406937936,1772304643867,-154.817435,0.0001732,2]
[406937937,1772304643878,-154.817435,0.0001732,2]
[406937938,1772304643887,-154.817435,0.0001732,2]
[406937940,1772304643897,-154.817435,0.0001732,2]
[406937941,1772304643907,-158.546939,0.0001732,2]
[406937942,1772304643916,-158.546939,0.0001732,2]
[406937944,1772304643926,-158.546939,0.0001732,2]
[406937945,1772304643935,-158.546939,0.0001732,2]
[406937946,1772304643950,-500.0,0.0001732,2]
[406937947,1772304643959,-500.0,0.0001732,2]
[406937948,1772304643968,-160.144,0.0001732,2]
[406937949,1772304643978,-500.0,0.0001732,2]
[406937950,1772304643989,-506.55258231,0.0001732,2]
[406937952,1772304643999,-504.49415487,0.0001732,2]
[406937953,1772304644008,-500.0,0.0001732,2]
[406937954,1772304644021,-500.0,0.0001732,2]
[406937956,1772304644031,-500.0,0.0001732,2]
[406937957,1772304644041,-500.0,0.0001732,2]
[406937958,1772304644050,-500.0,0.0001732,2]
[406937959,1772304644060,-500.0,0.0001732,2]
[406937960,1772304644070,-500.0,0.0001732,2]
[406937961,1772304644080,-500.0,0.0001732,2]
[406937963,1772304644090,-500.0,0.0001732,2]
[406937964,1772304644100,-500.0,0.0001732,2]
[406937965,1772304644109,-500.0,0.0001732,2]
[406937966,1772304644119,-1302.7935616,0.0001743,2]
[406937967,1772304644129,-2498.89179257,0.00017432,2]
[406937969,1772304644139,-151.0,0.00017435,2]
[406937970,1772304644149,-618.0,0.00017474,2]
[406937971,1772304644159,-1340.0,0.00017474,2]
[406937972,1772304644168,-1041.0,0.00017474,2]
[406937973,1772304644178,-3499.0,0.00017474,2]
[406937974,1772304644188,-1277.0,0.00017474,2]
[406937975,1772304644198,-907.892,0.00017474,2]
[406937976,1772304644209,-1211.0,0.00017474,2]
[406937977,1772304644219,-2455.0,0.00017474,2]
[406937978,1772304644229,-5984.0,0.00017474,2]
[406937979,1772304644240,-463.101,0.00017474,2]
[406937980,1772304644249,-180.646598,0.00017475,2]
[406937981,1772304644259,-180.646598,0.00017475,2]
[406937982,1772304644269,-180.646598,0.00017475,2]
[406937983,1772304644278,-180.646598,0.00017475,2]
[406937984,1772304644288,-1033.79,0.0001749,2]
[406937985,1772304644298,-694.42441671,0.000175,3]
[406937986,1772304644308,-5616.53495309,0.000175,3]
[406937987,1772304644318,-8833.0,0.0001754,2]
[406937988,1772304644327,-856.513,0.0001754,2]
[406937989,1772304644337,-739.62380424,0.00017599,2]
[406937990,1772304644347,-1125.47112357,0.0001764,2]
[406937991,1772304644357,-1021.01331262,0.0001764,2]
[406937992,1772304644367,-1090.72304864,0.0001764,2]
[406937993,1772304644376,-1119.95058564,0.0001764,2]
[406937994,1772304644386,-1073.0484317,0.0001764,2]
[406937995,1772304644396,-1048.36744085,0.0001764,2]
[406937996,1772304644405,-1024.93477612,0.0001764,2]
[406937997,1772304644415,-1025.67232345,0.0001764,2]
[406937998,1772304644424,-1063.42674019,0.0001764,2]
[406937999,1772304644433,-1026.53201498,0.0001764,2]
[406938000,1772304644443,-1093.3827152,0.0001764,2]
[406938001,1772304644454,-1020.1665859,0.0001764,2]
[406938002,1772304644463,-1085.24319702,0.0001764,2]
[406938003,1772304644473,-1051.30765571,0.0001764,2]
[406938004,1772304644483,-1053.99869728,0.0001764,2]
[406938005,1772304644493,-1146.04053086,0.0001764,2]
[406938006,1772304644502,-1078.75583963,0.0001764,2]
[406938007,1772304644513,-1005.35137394,0.0001764,2]
[406938008,1772304644523,-1145.76667736,0.0001764,2]
[406938009,1772304644532,-1004.47645194,0.0001764,2]
[406938010,1772304644542,-1101.58185525,0.0001764,2]
[406938011,1772304644552,-1089.56819557,0.0001764,2]
[406938012,1772304644562,-1004.26276911,0.0001764,2]
[406938013,1772304644572,-1109.41428769,0.0001764,2]
[406938014,1772304644582,-1047.36891785,0.0001764,2]
[406938015,1772304644592,-1089.91597191,0.0001764,2]
[406938016,1772304644602,-1144.55650751,0.0001764,2]
[406938017,1772304644611,-1427.96349579,0.0001764,2]
[406938018,1772304644621,-2498.89179257,0.00017666,2]
[406938019,1772304644631,-168.0,0.0001767,2]
[406938020,1772304644641,-990.0,0.000177,2]
[406938021,1772304644651,-150.0,0.00017725,2]
[406938022,1772304644661,-150.0,0.00017733,2]
[406938023,1772304644671,-150.0,0.00017734,2]
[406938024,1772304644680,-150.0,0.00017738,2]
[406938025,1772304644690,-150.0,0.00017739,2]
[406938026,1772304644700,-150.0,0.00017746,2]
[406938027,1772304644711,-150.0,0.00017752,2]
[406938028,1772304644721,-150.0,0.00017764,2]
[406938029,1772304644730,-150.0,0.00017787,2]
[406938030,1772304644740,-150.0,0.00017791,2]
[406938031,1772304644749,-150.0,0.00017805,2]
[406938032,1772304644887,-150.0,0.00017807,2]
[406938033,1772304644898,-5000.0,0.00017808,2]
[406938034,1772304644910,-800.0,0.00017808,2]
[406938035,1772304644919,-798.09072,0.0001782,2]
[406938036,1772304644928,-798.09072,0.0001782,2]
[406938037,1772304644937,-798.09072,0.0001782,2]
[406938038,1772304644948,-798.09072,0.0001782,2]
[406938039,1772304644960,-150.0,0.00017821,2]
[406938040,1772304644969,-168.0,0.00017832,2]
[406938041,1772304644979,-250.0,0.00017843,2]
[406938042,1772304644987,-150.141,0.00017843,2]
[406938043,1772304644999,-150.0,0.00017843,2]
[406938044,1772304645008,-150.126,0.00017843,2]
[406938045,1772304645020,-217.02842139,0.00017848,2]
[406938046,1772304645029,-150.0,0.00017859,2]
[406938047,1772304645039,-25000.0,0.00017865,3]
[406938048,1772304645049,-1000.0,0.00017868,2]
[406938049,1772304645058,-1032.89246011,0.00017868,2]
[406938050,1772304645068,-712.37829793,0.00017868,2]
[406938051,1772304645077,-1000.0,0.00017868,2]
[406938052,1772304645086,-500.0,0.00017868,2]
[406938053,1772304645096,-1000.0,0.00017868,2]
[406938054,1772304645105,-500.0,0.00017868,2]
[406938055,1772304645115,-526.23779749,0.00017868,2]
[406938056,1772304645124,-1000.0,0.00017868,2]
[406938057,1772304645134,-1050.78546123,0.00017868,2]
[406938058,1772304645144,-484.71516567,0.00017868,2]
[406938059,1772304645154,-25000.0,0.00017874,3]
[406938060,1772304645164,-150.0,0.00017876,2]
[406938061,1772304645175,-180.13617366,0.00017881,2]
[406938062,1772304645184,-150.0,0.00017882,2]
[406938063,1772304645194,-25000.0,0.00017882,3]
[406938064,1772304645205,-1033.13865863,0.00017886,2]
[406938065,1772304645215,-1075.2658489,0.0001789,2]
[406938066,1772304645224,-150.0,0.0001789,2]
[406938067,1772304645233,-25000.0,0.00017891,3]
[406938068,1772304645243,-2008.73490934,0.000179,3]
[406938069,1772304645253,-9102.71678634,0.000179,3]
[406938070,1772304645263,-323.67332591,0.000179,2]
[406938071,1772304645272,-155.671451,0.000179,2]
[406938072,1772304645282,-154.548908,0.000179,2]
[406938073,1772304645291,-151.0,0.000179,2]
[406938074,1772304645300,-171.138768,0.000179,2]
[406938075,1772304645310,-25000.0,0.000179,3]
[406938076,1772304645319,-151.0,0.000179,2]
[406938077,1772304645329,-25000.0,0.000179,3]
[406938078,1772304645339,-739.62380424,0.000179,2]
[406938079,1772304645348,-2498.89179257,0.000179,2]
[406938080,1772304645358,-170.79932458,0.000179,3]
[406938081,1772304645367,-42242.38464959,0.000179,2]
[406938082,1772304645377,-150.0,0.0001791,2]
[406938083,1772304645386,-150.0,0.00017911,2]
[406938084,1772304645396,-422.66,0.00017913,2]
[406938085,1772304645406,-168.0,0.00017913,2]
[406938086,1772304645415,-150.0,0.00017924,2]
[406938087,1772304645424,-150.0,0.00017929,2]
[406938088,1772304645434,-50000.0,0.0001794,2]
[406938089,1772304645443,-151.0,0.0001794,2]
[406938090,1772304645452,-151.0,0.0001794,2]
[406938091,1772304645462,-151.0,0.0001794,2]
[406938092,1772304645471,-151.0,0.0001794,2]
[406938093,1772304645480,-151.0,0.0001794,2]
[406938094,1772304645490,-151.0,0.0001794,2]
[406938095,1772304645503,-150.0,0.00017942,2]
[406938096,1772304645512,-150.0,0.00017959,2]
[406938097,1772304645521,-150.0,0.00017967,2]
[406938098,1772304645531,-400.0,0.0001797,2]
[406938099,1772304645541,-1000.0,0.0001797,2]
[406938100,1772304645551,-400.64253974,0.0001797,2]
[406938101,1772304645560,-1000.0,0.0001797,2]
[406938102,1772304645570,-1000.0,0.0001797,2]
[406938103,1772304645580,-1000.0,0.0001797,2]
[406938104,1772304645590,-1000.0,0.0001797,2]
[406938105,1772304645599,-1000.0,0.0001797,2]
[406938106,1772304645610,-1000.0,0.0001797,2]
[406938107,1772304645619,-1121.80732336,0.0001797,2]
[406938108,1772304645629,-168.0,0.00017973,2]
[406938109,1772304645638,-150.0,0.00017986,2]
[406938110,1772304645648,-168.0,0.0001799,2]
[406938111,1772304645657,-180.13617366,0.0001799,2]
[406938112,1772304645667,-10988.95866527,0.00017999,2]
[406938113,1772304645676,-330.36078572,0.00017999,2]
[406938114,1772304645685,-195.66587194,0.00017999,2]
[406938115,1772304645695,-7672.63230059,0.00017999,2]
[406938116,1772304645704,-383036.26870639,0.00018,2]
[406938117,1772304645719,-44669.21017603,0.00018,2]
[406938118,1772304645730,-10007.897847,0.00018,2]
[406938119,1772304645741,-13160.76481268,0.00018,2]
[406938120,1772304645753,-285.3534424,0.00018,2]
[406938121,1772304645765,-31985.40000016,0.00018,2]
[406938122,1772304645964,-166.66,0.00014734,2]
[406938123,1772304645974,-166.66,0.00015044,2]
[406938124,1772304645983,-60.814,0.00015354,2]
[406938125,1772304646000,-105.846,0.00015354,2]
[406938126,1772304646011,-166.66,0.00015665,2]
[406938128,1772304646020,-166.66,0.00015975,2]
[406938129,1772304646030,-166.66,0.00016285,2]
[406938131,1772304646039,-7622.83341489,0.00018,2]
[406938133,1772304646050,-1261.17527686,0.00018,2]
[406938178,1772305524462,-199.06,8.121e-05,2]
[406938179,1772305524496,-218.0,8.121e-05,2]
[406938180,1772305524526,-300.0,8.415e-05,2]
[406938181,1772305524557,-82.94,8.415e-05,2]
[406938182,1772305602089,-217.06,8.415e-05,2]
[406938183,1772305602110,-6.1991266,8.415e-05,2]
[406938184,1772305690684,-293.8008734,8.415e-05,2]
[406938185,1772305690705,-300.0,8.415e-05,2]
[406938186,1772305690726,-199.06,8.471e-05,2]
[406938187,1772305690746,-195.0,8.54e-05,2]
[406938188,1772305690767,-195.0,8.54e-05,2]
[406938189,1772305690787,-195.0,8.54e-05,2]
[406938190,1772305690807,-199.06,8.82e-05,2]
[406938191,1772305690827,-1200.0,8.932e-05,2]
[406938192,1772305690847,-195.0,8.933e-05,2]
[406938193,1772305690869,-300.0,8.933e-05,2]
[406938194,1772305690889,-195.0,8.933e-05,2]
[406938195,1772305690909,-199.06,9.17e-05,2]
[406938196,1772305690933,-300.0,9.256e-05,2]
[406938197,1772305690960,-250.0,9.256e-05,2]
[406938198,1772305690983,-300.0,9.256e-05,2]
[406938199,1772305691006,-200.911928,9.376e-05,2]
[406938200,1772305691031,-199.06,9.52e-05,2]
[406938201,1772305691055,-300.0,9.613e-05,2]
[406938202,1772305691082,-4784.0471986,9.614e-05,2]
[406938203,1772305692400,-10000.0,9.614e-05,2]
[406938204,1772305693441,-10000.0,9.614e-05,2]
[406938205,1772305694382,-10000.0,9.614e-05,2]
[406938206,1772305695654,-10000.0,9.614e-05,2]
[406938207,1772305697377,-10000.0,9.614e-05,2]
[406938231,1772305831804,-787.13415081,9.614e-05,2]
[406938232,1772305831816,-303.8818997,9.614e-05,2]
[406938233,1772305831827,-422.81516774,9.614e-05,2]
[406938234,1772305831856,-302.18492085,9.614e-05,2]
[406938235,1772305831868,-2769.66149264,9.614e-05,2]
[406938236,1772305831879,-385.00293256,9.614e-05,2]
[406938237,1772305831911,-1973.52122507,9.614e-05,2]
[406938238,1772305831920,-300.0,9.667e-05,2]
[406938239,1772305831931,-195.0,9.719e-05,2]
[406938240,1772305831940,-1200.0,9.787e-05,2]
[406938241,1772305831950,-300.0,9.787e-05,2]
[406938242,1772305831959,-300.0,9.788e-05,2]
[406938244,1772305831968,-300.0,9.788e-05,2]
[406938246,1772305831978,-300.0,9.788e-05,2]
[406938247,1772305831987,-188.09299602,9.825e-05,2]
[406938249,1772305831997,-199.06,9.869e-05,2]
[406938251,1772305832006,-195.0,9.913e-05,2]
[406938252,1772305832015,-165.55580784,9.913e-05,2]
[406938254,1772305832025,-163.825079,0.0001004,2]
[406938256,1772305832035,-199.06,0.00010219,2]
[406938258,1772305832044,-199.06,0.00010569,2]
[406938260,1772305832053,-195.0,0.00010575,2]
[406938262,1772305832062,-300.0,0.00010575,2]
[406938264,1772305832071,-420.0,0.00010766,2]
[406938266,1772305832080,-1451.26242564,0.00010766,2]
[406938268,1772305832091,-228.73757436,0.00010766,2]
[406938270,1772305832100,-199.06,0.00010918,2]
[406938272,1772305832108,-515.0,0.00011247,2]
[406938274,1772305832118,-931.0,0.00011261,2]
[406938275,1772305832127,-199.06,0.00011268,2]
[406938276,1772305832136,-1050.0,0.00011364,2]
[406938277,1772305832145,-13385.13972579,0.00011434,2]
[406938278,1772305832160,-25324.05845114,0.00011434,2]
[406938279,1772305832171,-5373.35624614,0.00011434,2]
[406938280,1772305832181,-457.0,0.00011605,2]
[406938281,1772305832190,-199.06,0.00011618,2]
[406938282,1772305832200,-245.0,0.00011628,2]
[406938283,1772305832209,-300.0,0.00011843,2]
[406938284,1772305832218,-754.0,0.00011843,2]
[406938285,1772305832228,-2595.31554144,0.00011967,2]
[406938286,1772305832237,-199.06,0.00011967,2]
[406938287,1772305832246,-204.781348,0.00012048,2]
[406938288,1772305832257,-1500.0,0.00012096,2]
[406938289,1772305832265,-6506.67223002,0.00012308,2]
[406938290,1772305832274,-199.06,0.00012317,2]
[406938291,1772305832284,-1287.26246705,0.00012509,2]
[406938292,1772305832293,-38839.90229624,0.0001256,2]
[406938293,1772305832306,-150.0,0.00012609,2]
[406938294,1772305832315,-2629.95,0.00012639,2]
[406938295,1772305832324,-199.06,0.00012667,2]
[406938296,1772305832335,-250.0,0.00012703,2]
[406938297,1772305832344,-199.06,0.00013017,2]
[406938298,1772305832353,-1287.262467,0.00013108,2]
[406938299,1772305832362,-171.95,0.00013246,2]
[406938300,1772305832373,-199.06,0.00013366,2]
[406938301,1772305832382,-1287.262467,0.00013707,2]
[406938302,1772305832391,-199.06,0.00013716,2]
[406938303,1772305832400,-1364.45408571,0.00014001,7]
[406938307,1772305837876,-422.58467,0.00014001,7]
[406938308,1772305837983,-2396.09282929,0.00014001,7]
[406938309,1772305837993,-1028.28289573,0.00014001,7]
[406938310,1772305838004,-986.63248327,0.00014001,7]
[406938311,1772305838014,-199.06,0.00014066,2]
[406938312,1772305838023,-533.0,0.0001411,2]
[406938313,1772305838033,-1287.262467,0.00014306,2]
[406938314,1772305838043,-199.06,0.00014415,2]
[406938315,1772305838052,-199.06,0.00014765,2]
[406938316,1772305838061,-1640.3,0.00014818,2]
[406938317,1772305838070,-158.45,0.00014901,2]
[406938318,1772305838079,-1287.262467,0.00014905,2]
[406938319,1772305838088,-245.737618,0.0001506,7]
[406938320,1772305838098,-1600.68225827,0.00015102,2]
[406938321,1772305838107,-1287.262467,0.00015504,2]
[406938322,1772305838117,-159.42993694,0.000156,2]
[406938323,1772305838126,-5000.0,0.000156,2]
[406938324,1772305838135,-1717.3267,0.000156,2]
[406938325,1772305838144,-183.46260466,0.000156,2]
[406938326,1772305838153,-1235.2464,0.000156,2]
[406938327,1772305838162,-23012.16512794,0.000156,2]
[406938328,1772305838174,-4222.66909462,0.000156,2]
[406938329,1772305838186,-1168.43302354,0.000156,2]
[406938330,1772305838198,-2250.97840525,0.000156,2]
[406938331,1772305838210,-1904.9937029,0.000156,2]
[406938332,1772305838221,-307.92957538,0.000156,2]
[406938333,1772305838269,-43.99999996,0.000156,2]
[406938334,1772305838281,-15837.27592586,0.000156,2]
[406938335,1772305838293,-29493.9909153,0.000156,2]
[406938336,1772305838316,-255.06592925,0.000156,2]
[406938337,1772305838325,-77.9340706,0.000156,2]
[406938338,1772305838339,-754.07848955,0.000156,2]
[406938355,1772305840621,-1074.99859925,0.000156,2]
[406938356,1772305840632,-592.9888406,0.000156,2]
[406938357,1772305840642,-66.12917116,0.000156,2]
[406938358,1772305840653,-469.7241255,0.000156,2]
[406938359,1772305840668,-206.04185552,0.000156,2]
[406938360,1772305840677,-417.0356305,0.000156,2]
[406938361,1772305840687,-159.44219072,0.000156,2]
[406938362,1772305840696,-186.64279832,0.000156,2]
[406938363,1772305840705,-574.9877853,0.000156,2]
[406938364,1772305840714,-14027.8538,0.00015609,2]
[406938365,1772305840724,-1000.0,0.00015609,2]
[406938366,1772305840733,-2596.88809461,0.00015689,2]
[406938367,1772305840742,-224.39338964,0.0001569,2]
[406938368,1772305840752,-151.0,0.00015691,2]
[406938369,1772305840761,-151.0,0.00015691,2]
[406938370,1772305840770,-151.0,0.00015691,2]
[406938371,1772305840779,-151.0,0.00015697,2]
[406938372,1772305840788,-292.6907697,0.00015699,2]
[406938373,1772305840798,-500.0,0.00015699,2]
[406938374,1772305840808,-500.0,0.00015699,2]
[406938375,1772305840817,-500.0,0.00015699,2]
[406938376,1772305840827,-281.09297896,0.00015699,2]
[406938377,1772305840836,-500.0,0.00015699,2]
[406938378,1772305840845,-500.0,0.00015699,2]
[406938379,1772305840855,-500.0,0.00015699,2]
[406938380,1772305840864,-500.0,0.00015699,2]
[406938381,1772305840873,-500.0,0.00015699,2]
[406938382,1772305840882,-500.0,0.00015699,2]
[406938383,1772305840891,-500.0,0.00015699,2]
[406938384,1772305840900,-500.0,0.00015699,2]
[406938385,1772305840910,-500.0,0.00015699,2]
[406938386,1772305840919,-500.0,0.00015699,2]
[406938387,1772305840928,-500.0,0.00015699,2]
[406938388,1772305840937,-500.0,0.00015699,2]
[406938389,1772305840947,-473.71276305,0.00015699,2]